bitfinex/quotes_BTCUSD_20250718
["timestamp","ask_amount","ask_price","bid_price","bid_amount"]
[1752819333708,6.00102438,120490.0,120480.0,1e-08]
[1752819334906,5.91526476,120490.0,120480.0,1e-08]
[1752819335532,0.91526476,120490.0,120480.0,1e-08]
[1752819335749,5.91526476,120490.0,120480.0,1e-08]
[1752819338269,5.88779437,120490.0,120480.0,1e-08]
[1752819339534,5.75383437,120490.0,120480.0,1e-08]
[1752819339761,6.00098438,120490.0,120480.0,1e-08]
[1752819340963,5.86606438,120490.0,120480.0,1e-08]
[1752819341211,0.52264791,120450.0,120440.0,0.0343]
[1752819341441,0.65652791,120450.0,120440.0,0.03642]
[1752819342506,0.65657784,120450.0,120440.0,0.03642]
[1752819342928,0.65657784,120450.0,120440.0,0.03742]
[1752819343134,0.60526186,120450.0,120440.0,0.03742]
[1752819343310,0.73914186,120450.0,120440.0,0.03742]
[1752819343518,0.65657784,120450.0,120440.0,0.03742]
[1752819343936,0.65657784,120450.0,120440.0,0.03942]
[1752819345833,0.52269784,120450.0,120440.0,0.03942]
[1752819346036,0.65657784,120450.0,120440.0,0.03942]
[1752819346259,0.65657784,120450.0,120440.0,0.03742]
[1752819346604,0.65757784,120450.0,120440.0,0.03642]
[1752819346805,0.65857784,120450.0,120440.0,0.03642]
[1752819347501,0.52469784,120450.0,120440.0,0.03642]
[1752819347924,0.65857784,120450.0,120440.0,0.03642]
[1752819350438,0.65857784,120450.0,120440.0,0.023001]
[1752819351114,0.66066784,120450.0,120440.0,0.019801]
[1752819351350,0.66375784,120450.0,120440.0,0.019801]
[1752819352257,0.66062784,120450.0,120440.0,0.019801]
[1752819353106,0.52678784,120450.0,120440.0,0.019801]
[1752819353279,0.65853784,120450.0,120440.0,0.023041]
[1752819353681,0.74134886,120450.0,120440.0,0.023041]
[1752819354018,0.74343886,120450.0,120440.0,0.019801]
[1752819354371,0.66066784,120450.0,120440.0,0.019801]
[1752819357111,0.52682784,120450.0,120440.0,0.019801]
[1752819357352,0.65853784,120450.0,120440.0,0.023041]
[1752819359439,0.52473784,120450.0,120440.0,0.023041]
[1752819359658,0.65853784,120450.0,120440.0,0.023041]
[1752819361191,0.52473784,120450.0,120440.0,0.023041]
[1752819361404,0.65853784,120450.0,120440.0,0.023041]
[1752819362209,0.52473784,120450.0,120440.0,0.023041]
[1752819362418,0.52473784,120450.0,120440.0,0.03134388]
[1752819362663,0.65023599,120450.0,120440.0,0.023041]
[1752819363504,0.60219561,120450.0,120440.0,0.023041]
[1752819363737,0.73599561,120450.0,120440.0,0.023041]
[1752819364154,0.51643599,120450.0,120440.0,0.023041]
[1752819364374,0.65023599,120450.0,120440.0,0.023041]
[1752819364796,0.51643599,120450.0,120440.0,0.023041]
[1752819365009,0.65019599,120450.0,120440.0,0.023041]
[1752819365438,0.51643599,120450.0,120440.0,0.023041]
[1752819365644,0.65019599,120450.0,120440.0,0.19740166]
[1752819365852,0.65019599,120450.0,120440.0,0.03134388]
[1752819366063,0.65019599,120450.0,120440.0,0.023041]
[1752819366505,0.60219561,120450.0,120440.0,0.18909878]
[1752819366713,0.73595561,120450.0,120440.0,0.023041]
[1752819366890,0.65019599,120450.0,120440.0,0.023041]
[1752819367974,0.34208993,120450.0,120440.0,0.27460906]
[1752819368163,0.15245328,120450.0,120440.0,0.29951689]
[1752819368368,0.31849784,120450.0,120440.0,0.10855128]
[1752819368647,0.65849784,120450.0,120440.0,0.10855128]
[1752819368839,0.65849784,120450.0,120440.0,0.27460906]
[1752819368974,0.65849784,120450.0,120440.0,0.28291194]
[1752819368975,0.52473784,120450.0,120440.0,0.28291194]
[1752819369203,0.65849784,120450.0,120440.0,0.29121476]
[1752819369412,0.49245384,120450.0,120440.0,0.30781998]
[1752819369785,0.66679997,120450.0,120440.0,0.31612245]
[1752819370204,0.50075597,120450.0,120440.0,0.3643413]
[1752819370718,0.50075597,120450.0,120440.0,0.31612197]
[1752819371038,0.49245342,120450.0,120440.0,0.31612197]
[1752819371238,0.49245335,120450.0,120440.0,0.31612197]
[1752819371941,0.50075527,120450.0,120440.0,0.31612197]
[1752819372140,0.50905733,120450.0,120440.0,0.31612197]
[1752819372530,0.50901733,120450.0,120440.0,0.31612197]
[1752819373905,0.37529733,120450.0,120440.0,0.31612197]
[1752819374165,0.51731946,120450.0,120440.0,0.31612197]
[1752819374378,0.54134182,120450.0,120440.0,0.2995171]
[1752819374559,0.67506182,120450.0,120440.0,0.2995171]
[1752819374901,0.67506182,120450.0,120440.0,0.30781957]
[1752819375216,0.68336402,120450.0,120440.0,0.30781957]
[1752819375561,0.67506224,120450.0,120440.0,0.30781957]
[1752819375880,0.54134224,120450.0,120440.0,0.30781957]
[1752819376092,0.67506224,120450.0,120440.0,0.31612197]
[1752819377498,0.50071604,120450.0,120440.0,0.31612197]
[1752819377668,0.67506224,120450.0,120440.0,0.31612197]
[1752819377935,0.61093766,120450.0,120440.0,0.019801]
[1752819378152,0.61093766,120450.0,120430.0,0.0309]
[1752819378153,0.17436066,120440.0,120430.0,0.0309]
[1752819378361,0.65014066,120440.0,120430.0,0.0309]
[1752819378476,0.65014066,120440.0,120430.0,0.20734507]
[1752819378685,0.65014066,120440.0,120430.0,0.19904157]
[1752819378888,0.65335066,120440.0,120430.0,0.00207]
[1752819379431,0.65014066,120440.0,120430.0,0.03437]
[1752819379863,0.65014066,120440.0,120430.0,0.01877]
[1752819380269,0.65335066,120440.0,120430.0,0.01877]
[1752819380705,0.65335066,120440.0,120430.0,0.00307]
[1752819380830,0.65335066,120440.0,120430.0,0.00407]
[1752819381035,0.65320121,120440.0,120430.0,0.00407]
[1752819382465,0.65320121,120440.0,120430.0,0.01987]
[1752819383282,0.65316121,120440.0,120430.0,0.002]
[1752819384620,0.66312778,120440.0,120430.0,0.002]
[1752819388146,0.61241395,120440.0,120430.0,0.002]
[1752819388378,0.67842778,120440.0,120430.0,0.002]
[1752819388854,0.67838778,120440.0,120430.0,0.002]
[1752819390090,0.51437507,120430.0,120420.0,0.21459336]
[1752819390348,0.64797507,120430.0,120420.0,0.21666336]
[1752819391204,0.64797507,120430.0,120420.0,0.25694444]
[1752819391446,0.65328507,120430.0,120420.0,0.24864025]
[1752819391672,0.65328507,120430.0,120420.0,0.21035917]
[1752819391887,0.65007507,120430.0,120420.0,0.21035917]
[1752819392108,0.65007507,120430.0,120420.0,0.03597]
[1752819392323,0.65328507,120430.0,120420.0,0.03597]
[1752819392527,0.65328507,120430.0,120420.0,0.20205536]
[1752819392840,0.65007507,120430.0,120420.0,0.21035962]
[1752819393717,0.65007507,120430.0,120420.0,0.03597]
[1752819394168,0.65007507,120430.0,120420.0,0.03529801]
[1752819394828,0.65007507,120430.0,120420.0,0.01919801]
[1752819395288,0.65007507,120430.0,120420.0,0.18528337]
[1752819395730,0.51647507,120430.0,120420.0,0.18528337]
[1752819395923,0.65003507,120430.0,120420.0,0.01919801]
[1752819396140,0.65003507,120430.0,120420.0,0.00407]
[1752819397200,0.65007507,120430.0,120420.0,0.00407]
[1752819399104,0.65003507,120430.0,120420.0,0.17845955]
[1752819399315,0.65003507,120430.0,120420.0,0.20975955]
[1752819399541,0.65003507,120430.0,120420.0,0.21806354]
[1752819399767,0.65003507,120430.0,120420.0,0.20975955]
[1752819400197,0.51142157,120430.0,120420.0,0.17845955]
[1752819400438,0.64494157,120430.0,120420.0,0.18676368]
[1752819400655,0.64173157,120430.0,120420.0,0.19506774]
[1752819400885,0.65833864,120430.0,120420.0,0.23587166]
[1752819401094,0.65623864,120430.0,120420.0,0.23900166]
[1752819401520,0.66454194,120430.0,120420.0,0.23900166]
[1752819403011,0.66454194,120430.0,120420.0,0.23069774]
[1752819403620,0.66454194,120430.0,120420.0,0.23900173]
[1752819404060,0.65623864,120430.0,120420.0,0.21408955]
[1752819404283,0.65003514,120430.0,120420.0,0.19495962]
[1752819404472,0.65003514,120430.0,120420.0,0.20326375]
[1752819404617,0.65003514,120430.0,120420.0,0.19495962]
[1752819404618,0.64494157,120430.0,120420.0,0.19495962]
[1752819405200,0.64494157,120430.0,120420.0,0.00407]
[1752819405792,0.64494157,120430.0,120420.0,0.002]
[1752819406223,0.64494157,120430.0,120420.0,0.17638962]
[1752819408251,0.64494157,120430.0,120420.0,0.002]
[1752819408436,0.64494157,120430.0,120420.0,0.16808536]
[1752819408645,0.64494157,120430.0,120420.0,0.002]
[1752819410922,0.64494157,120430.0,120420.0,0.16808536]
[1752819411163,0.51972507,120430.0,120420.0,0.26000818]
[1752819411378,0.64995507,120430.0,120420.0,0.26000818]
[1752819411819,0.64995507,120430.0,120420.0,0.25170419]
[1752819411993,0.64995507,120430.0,120420.0,0.26000832]
[1752819412192,0.64995507,120430.0,120420.0,0.26831238]
[1752819412338,0.64995507,120430.0,120420.0,0.21059962]
[1752819412544,0.64995507,120430.0,120420.0,0.18680381]
[1752819412823,0.64995507,120430.0,120420.0,0.19510794]
[1752819413345,0.65305507,120430.0,120420.0,0.002]
[1752819413553,0.66055157,120430.0,120420.0,0.002]
[1752819413782,0.64475157,120430.0,120420.0,0.002]
[1752819413986,0.64475157,120430.0,120420.0,0.01030426]
[1752819414186,0.64475157,120430.0,120420.0,0.18469375]
[1752819414624,0.64475157,120430.0,120420.0,0.18369375]
[1752819415093,0.64575157,120430.0,120420.0,0.18269375]
[1752819415317,0.64675157,120430.0,120420.0,0.19099781]
[1752819415895,0.64675157,120430.0,120420.0,0.18269375]
[1752819416751,0.64675157,120430.0,120420.0,0.17438962]
[1752819416958,0.64675157,120430.0,120420.0,0.18269381]
[1752819417175,0.64381782,120430.0,120420.0,0.18269381]
[1752819417378,0.00830406,120420.0,120410.0,0.21694719]
[1752819417551,0.14166406,120420.0,120410.0,0.30456747]
[1752819417756,0.14166406,120420.0,120410.0,0.36567155]
[1752819417926,0.15827218,120420.0,120410.0,0.37397672]
[1752819418575,0.15827197,120420.0,120410.0,0.37397672]
[1752819418767,0.15827176,120420.0,120410.0,0.37497672]
[1752819419144,0.14996749,120420.0,120410.0,0.37597672]
[1752819419361,0.14166364,120420.0,120410.0,0.37597672]
[1752819419546,0.14996735,120420.0,120410.0,0.37597672]
[1752819419973,0.14166378,120420.0,120410.0,0.37597672]
[1752819420193,0.14166371,120420.0,120410.0,0.37597672]
[1752819420361,0.01660756,120420.0,120410.0,0.37597672]
[1752819420582,0.14162371,120420.0,120410.0,0.37597672]
[1752819421198,0.13332,120420.0,120410.0,0.37597672]
[1752819421782,0.36495024,120430.0,120420.0,0.19099726]
[1752819422005,4e-05,120430.0,120420.0,0.37751821]
[1752819422257,0.13336,120430.0,120420.0,0.37751821]
[1752819422436,0.13336,120430.0,120420.0,0.74999489]
[1752819422845,0.13336,120430.0,120420.0,0.37751821]
[1752819423053,0.13436,120430.0,120420.0,0.37751821]
[1752819423270,0.00104,120430.0,120420.0,0.37751821]
[1752819423483,0.13432,120430.0,120420.0,0.51079821]
[1752819423941,0.13432,120430.0,120420.0,0.37751821]
[1752819424148,0.13532,120430.0,120420.0,0.74999489]
[1752819426114,0.13532,120430.0,120420.0,0.37751821]
[1752819426739,0.13532,120430.0,120420.0,0.74999489]
[1752819427213,0.13532,120430.0,120420.0,0.37751821]
[1752819427425,0.13532,120430.0,120420.0,0.74999489]
[1752819427647,0.00204,120430.0,120420.0,0.37751821]
[1752819427787,0.13528,120430.0,120420.0,0.51075821]
[1752819429080,0.14358295,120430.0,120420.0,0.51075821]
[1752819429299,0.13528,120430.0,120420.0,0.51075821]
[1752819429745,0.00204,120430.0,120420.0,0.51075821]
[1752819430181,0.00204,120430.0,120420.0,0.88323489]
[1752819430362,0.00204,120430.0,120420.0,0.51075821]
[1752819430567,0.01034302,120430.0,120420.0,0.827368]
[1752819431030,0.01864611,120430.0,120420.0,0.827368]
[1752819431237,0.01864611,120430.0,120420.0,0.45489132]
[1752819431572,0.01034302,120430.0,120420.0,0.45489132]
[1752819432723,0.00830364,120420.0,120410.0,0.21634733]
[1752819432938,0.00830364,120420.0,120410.0,0.43712761]
[1752819433148,0.01660735,120420.0,120410.0,0.43712761]
[1752819433624,0.0249112,120420.0,120410.0,0.43712761]
[1752819433849,0.00830364,120420.0,120410.0,0.43712761]
[1752819434222,0.00830364,120420.0,120410.0,0.43812761]
[1752819434425,0.01974667,120430.0,120420.0,0.19099732]
[1752819434674,0.01867667,120430.0,120420.0,0.32626732]
[1752819434902,0.19305181,120430.0,120420.0,0.19310746]
[1752819435113,0.19615181,120430.0,120420.0,0.31796354]
[1752819435236,0.19345275,120430.0,120420.0,0.32626746]
[1752819435440,0.01907761,120430.0,120420.0,0.33457124]
[1752819435649,0.01597761,120430.0,120420.0,0.33457124]
[1752819436069,0.01597761,120430.0,120420.0,0.40615963]
[1752819436290,0.01597719,120430.0,120420.0,0.40615963]
[1752819436495,0.02428063,120430.0,120420.0,0.40615963]
[1752819436696,0.69038448,120440.0,120430.0,0.18267824]
[1752819437022,0.48972494,120440.0,120430.0,0.29047574]
[1752819437190,0.49802762,120440.0,120430.0,0.32390574]
[1752819437382,0.13312,120440.0,120430.0,0.32500574]
[1752819437590,0.14142226,120440.0,120430.0,0.32500574]
[1752819437798,0.13312,120440.0,120430.0,0.32500574]
[1752819438319,0.13512,120440.0,120430.0,0.32500574]
[1752819438548,0.14342226,120440.0,120430.0,0.32500574]
[1752819438745,0.13712,120440.0,120430.0,0.32500574]
[1752819438949,0.004,120440.0,120430.0,0.45812574]
[1752819439128,0.004,120440.0,120430.0,0.83060242]
[1752819439513,0.004,120440.0,120430.0,0.69748242]
[1752819440001,0.004,120440.0,120430.0,0.45808574]
[1752819440314,0.004,120440.0,120430.0,0.83056242]
[1752819441038,0.002,120440.0,120430.0,0.45808574]
[1752819441237,8.993e-05,120450.0,120440.0,0.22186561]
[1752819441436,8.993e-05,120450.0,120440.0,0.30737589]
[1752819441666,0.05401384,120450.0,120440.0,0.25156806]
[1752819441885,0.02490741,120440.0,120430.0,0.20428497]
[1752819442102,0.20134807,120440.0,120430.0,0.42287525]
[1752819442423,0.03022741,120440.0,120430.0,0.29309834]
[1752819442602,0.03022741,120440.0,120430.0,0.42814834]
[1752819442825,0.01868473,120440.0,120430.0,0.42814834]
[1752819443029,0.02698734,120440.0,120430.0,0.42814834]
[1752819443181,0.03529009,120440.0,120430.0,0.42814834]
[1752819443394,0.04359291,120440.0,120430.0,0.42814834]
[1752819443593,0.04108251,120440.0,120430.0,0.42814834]
[1752819443793,0.03277969,120440.0,120430.0,0.42814834]
[1752819444165,0.03277969,120440.0,120430.0,0.42914834]
[1752819444387,0.03277969,120440.0,120430.0,0.43014834]
[1752819446006,0.21038035,120440.0,120430.0,0.28876525]
[1752819446291,0.20207809,120440.0,120430.0,0.41350209]
[1752819446507,0.05182025,120440.0,120430.0,0.42053945]
[1752819446845,0.02771743,120440.0,120430.0,0.42053945]
[1752819447056,0.02771736,120440.0,120430.0,0.48976777]
[1752819447308,0.01617468,120440.0,120430.0,0.48972777]
[1752819447527,0.02447694,120440.0,120430.0,0.48972777]
[1752819447731,0.02239694,120440.0,120430.0,0.49289777]
[1752819447865,0.02239694,120440.0,120430.0,0.42366945]
[1752819448637,0.03069969,120440.0,120430.0,0.42366945]
[1752819449683,0.02239694,120440.0,120430.0,0.42366945]
[1752819449978,0.02239694,120440.0,120430.0,0.41219588]
[1752819449979,0.00830233,120440.0,120430.0,0.41219588]
[1752819450206,0.00830233,120440.0,120430.0,0.28236588]
[1752819450432,0.00830233,120440.0,120430.0,0.47045984]
[1752819450784,0.55748142,120450.0,120440.0,0.19096581]
[1752819451082,0.56786327,120450.0,120440.0,0.18266334]
[1752819451901,0.55156327,120450.0,120440.0,0.18266334]
[1752819452110,0.56036142,120450.0,120440.0,0.18266334]
[1752819452319,0.56136142,120450.0,120440.0,0.18266334]
[1752819452776,0.56136142,120450.0,120440.0,0.22520313]
[1752819452992,0.56136142,120450.0,120440.0,0.36646574]
[1752819453238,0.56966362,120450.0,120440.0,0.37476828]
[1752819453699,0.56966362,120450.0,120440.0,0.36646574]
[1752819454351,0.56966362,120450.0,120440.0,0.37476828]
[1752819454586,0.36767164,120450.0,120440.0,0.34250048]
[1752819454816,0.3669952,120450.0,120440.0,0.34567048]
[1752819455027,0.36699513,120450.0,120440.0,0.34567048]
[1752819455237,0.35869328,120450.0,120440.0,0.34567048]
[1752819455390,0.35869328,120450.0,120440.0,0.44648076]
[1752819455752,0.36699513,120450.0,120440.0,0.53093882]
[1752819455966,0.34208993,120450.0,120440.0,0.53093882]
[1752819456174,0.35039157,120450.0,120440.0,0.46268076]
[1752819456377,0.3503915,120450.0,120440.0,0.46268076]
[1752819456771,0.34208993,120450.0,120440.0,0.46268076]
[1752819456978,0.00208993,120450.0,120440.0,0.46268076]
[1752819457178,0.00208993,120450.0,120440.0,0.54844038]
[1752819459449,0.00208993,120450.0,120440.0,0.54840038]
[1752819460752,0.00208993,120450.0,120440.0,0.55795417]
[1752819461310,0.00208993,120450.0,120440.0,0.75594812]
[1752819461523,0.00208993,120450.0,120440.0,0.88882812]
[1752819461911,0.00200042,120450.0,120440.0,0.88882812]
[1752819462140,0.00100042,120450.0,120440.0,0.42503417]
[1752819462358,0.00100042,120450.0,120440.0,0.55791417]
[1752819462493,4.2e-07,120450.0,120440.0,0.42503417]
[1752819462708,4.2e-07,120450.0,120440.0,0.55791417]
[1752819462916,4.2e-07,120450.0,120440.0,0.55991417]
[1752819463121,4.2e-07,120450.0,120440.0,0.75794812]
[1752819463339,4.2e-07,120450.0,120440.0,0.89082812]
[1752819463556,4.2e-07,120450.0,120440.0,0.91574812]
[1752819464224,4.2e-07,120450.0,120440.0,0.91474812]
[1752819464643,4.2e-07,120450.0,120440.0,0.91674812]
[1752819465005,4.2e-07,120450.0,120440.0,0.92074812]
[1752819465611,4.2e-07,120450.0,120440.0,0.76294812]
[1752819465824,4.2e-07,120450.0,120440.0,0.89578812]
[1752819468062,4.2e-07,120450.0,120440.0,0.76294812]
[1752819468326,4.2e-07,120450.0,120440.0,1.1040885]
[1752819468707,4.2e-07,120450.0,120440.0,0.9712885]
[1752819468916,4.2e-07,120450.0,120440.0,1.1040885]
[1752819469177,4.2e-07,120450.0,120440.0,0.9712885]
[1752819469383,4.2e-07,120450.0,120440.0,1.1040885]
[1752819469534,4.2e-07,120450.0,120440.0,1.18984812]
[1752819471308,4.2e-07,120450.0,120440.0,1.1899032]
[1752819472927,4.2e-07,120450.0,120440.0,1.1879328]
[1752819476209,4.2e-07,120450.0,120440.0,1.0551328]
[1752819476466,4.2e-07,120450.0,120440.0,0.96937318]
[1752819476630,4.2e-07,120450.0,120440.0,1.10213318]
[1752819476970,4.2e-07,120450.0,120440.0,0.77121923]
[1752819477122,4.2e-07,120450.0,120440.0,0.63845923]
[1752819477338,0.00209042,120450.0,120440.0,0.72695544]
[1752819478247,0.00209042,120450.0,120440.0,0.71995544]
[1752819478643,0.00209042,120450.0,120440.0,0.72295544]
[1752819479300,0.00209042,120450.0,120440.0,0.80871506]
[1752819479730,0.00209042,120450.0,120440.0,0.72495544]
[1752819480074,0.00209042,120450.0,120440.0,0.43085544]
[1752819481395,0.00209042,120450.0,120440.0,0.29813544]
[1752819481604,0.00209042,120450.0,120440.0,0.43085544]
[1752819481812,0.05351377,120450.0,120440.0,0.29616544]
[1752819482016,0.05351377,120450.0,120440.0,0.42884544]
[1752819482188,0.06181562,120450.0,120440.0,0.42884544]
[1752819482644,0.07011761,120450.0,120440.0,0.42884544]
[1752819482872,0.06181562,120450.0,120440.0,0.42684544]
[1752819483073,0.04521199,120450.0,120440.0,0.42684544]
[1752819483270,0.0535137,120450.0,120440.0,0.42684544]
[1752819483694,0.06181562,120450.0,120440.0,0.42384544]
[1752819484206,0.06181562,120450.0,120440.0,0.42484544]
[1752819485161,0.05351363,120450.0,120440.0,0.42484544]
[1752819485384,0.02051042,120450.0,120440.0,0.48411957]
[1752819485586,0.00531042,120450.0,120440.0,0.48624957]
[1752819485892,0.01361199,120450.0,120440.0,0.48624957]
[1752819486094,0.01361199,120450.0,120440.0,0.42697544]
[1752819486298,0.0219137,120450.0,120440.0,0.42697544]
[1752819486466,0.07091747,120450.0,120440.0,0.42484544]
[1752819486671,0.06261548,120450.0,120440.0,0.42484544]
[1752819486881,0.0709174,120450.0,120440.0,0.42484544]
[1752819487962,0.0709174,120450.0,120440.0,0.29216544]
[1752819488174,0.06261548,120450.0,120440.0,0.42480544]
[1752819488390,0.0543137,120450.0,120440.0,0.42480544]
[1752819488787,0.06261555,120450.0,120440.0,0.42480544]
[1752819489728,0.0543137,120450.0,120440.0,0.42480544]
[1752819490001,0.0383137,120450.0,120440.0,0.42480544]
[1752819491529,0.04661548,120450.0,120440.0,0.42480544]
[1752819491790,0.0700174,120450.0,120440.0,0.42480544]
[1752819492030,0.06171548,120450.0,120440.0,0.42480544]
[1752819492231,0.07001733,120450.0,120440.0,0.42480544]
[1752819492432,0.07831932,120450.0,120440.0,0.42480544]
[1752819492647,0.07001733,120450.0,120440.0,0.42480544]
[1752819493945,0.07001733,120450.0,120440.0,0.29216544]
[1752819494148,0.06171548,120450.0,120440.0,0.42476544]
[1752819494324,0.0700174,120450.0,120440.0,0.29216544]
[1752819494598,0.07001747,120450.0,120440.0,0.29216544]
[1752819494815,0.06171548,120450.0,120440.0,0.42476544]
[1752819495035,0.0534137,120450.0,120440.0,0.42476544]
[1752819495482,0.05341377,120450.0,120440.0,0.42476544]
[1752819496840,0.03001199,120450.0,120440.0,0.42476544]
[1752819497059,0.03831377,120450.0,120440.0,0.42476544]
[1752819497282,0.0383137,120450.0,120440.0,0.42476544]
[1752819497671,0.0350937,120450.0,120440.0,0.42685544]
[1752819497880,0.03509363,120450.0,120440.0,0.48633057]
[1752819498089,0.02679199,120450.0,120440.0,0.42685544]
[1752819498304,0.01869363,120450.0,120440.0,0.42685544]
[1752819498523,0.00209042,120450.0,120440.0,0.42685544]
[1752819499166,4.2e-07,120450.0,120440.0,0.42685544]
[1752819499370,0.00830206,120450.0,120440.0,0.42685544]
[1752819499753,4.2e-07,120450.0,120440.0,0.42685544]
[1752819499957,0.00830199,120450.0,120440.0,0.42685544]
[1752819501354,4.2e-07,120450.0,120440.0,0.42685544]
[1752819501559,4.2e-07,120450.0,120440.0,0.35372657]
[1752819501774,4.2e-07,120450.0,120440.0,0.42982544]
[1752819508589,4.2e-07,120450.0,120440.0,0.80208706]
[1752819512293,4.2e-07,120450.0,120440.0,0.42970544]
[1752819512816,4.2e-07,120450.0,120440.0,0.42665544]
[1752819514481,4.2e-07,120450.0,120440.0,0.29425544]
[1752819514686,4.2e-07,120450.0,120440.0,0.42665544]
[1752819516785,4.2e-07,120450.0,120440.0,0.51241506]
[1752819517176,4.2e-07,120450.0,120440.0,0.42665544]
[1752819518217,4.2e-07,120450.0,120440.0,0.42661544]
[1752819518423,4.2e-07,120450.0,120440.0,0.42966544]
[1752819523864,4.2e-07,120450.0,120440.0,0.80192706]
[1752819524853,4.2e-07,120450.0,120440.0,0.80170006]
[1752819525824,4.2e-07,120450.0,120440.0,0.42943844]
[1752819526066,4.2e-07,120450.0,120440.0,0.80170006]
[1752819526665,4.2e-07,120450.0,120440.0,0.80158006]
[1752819529302,4.2e-07,120450.0,120440.0,0.46071844]
[1752819529540,4.2e-07,120450.0,120440.0,0.83298006]
[1752819529948,4.2e-07,120450.0,120440.0,0.46071844]
[1752819530156,4.2e-07,120450.0,120440.0,0.80158006]
[1752819532232,4.2e-07,120450.0,120440.0,0.51507806]
[1752819532379,4.2e-07,120450.0,120440.0,0.42931844]
[1752819532580,4.2e-07,120450.0,120440.0,0.80158006]
[1752819536215,4.2e-07,120450.0,120440.0,0.66934006]
[1752819536348,4.2e-07,120450.0,120440.0,0.80150006]
[1752819537222,4.2e-07,120450.0,120440.0,0.88725968]
[1752819537635,4.2e-07,120450.0,120440.0,0.51499806]
[1752819537812,4.2e-07,120450.0,120440.0,0.80150006]
[1752819538915,4.2e-07,120450.0,120440.0,0.42923844]
[1752819539269,4.2e-07,120450.0,120440.0,0.80150006]
[1752819539990,4.2e-07,120450.0,120440.0,0.42923844]
[1752819540201,4.2e-07,120450.0,120440.0,0.80150006]
[1752819540410,4.2e-07,120450.0,120440.0,0.78709968]
[1752819540616,4.2e-07,120450.0,120440.0,1.1593613]
[1752819540857,4.2e-07,120450.0,120440.0,1.2914413]
[1752819540984,4.2e-07,120450.0,120440.0,1.3163633]
[1752819541408,4.2e-07,120450.0,120440.0,1.1842833]
[1752819541613,4.2e-07,120450.0,120440.0,1.3163633]
[1752819541938,4.2e-07,120450.0,120440.0,1.3193633]
[1752819543351,4.2e-07,120450.0,120440.0,0.94710168]
[1752819543565,4.2e-07,120450.0,120440.0,0.94606168]
[1752819543771,4.2e-07,120450.0,120440.0,0.95006168]
[1752819544340,4.2e-07,120450.0,120440.0,0.57780006]
[1752819544577,4.2e-07,120450.0,120440.0,0.36000044]
[1752819544793,4.2e-07,120450.0,120440.0,0.49204044]
[1752819545185,4.2e-07,120450.0,120440.0,0.86430206]
[1752819545346,4.2e-07,120450.0,120440.0,1.15840206]
[1752819546935,4.2e-07,120450.0,120440.0,1.02636206]
[1752819547173,4.2e-07,120450.0,120440.0,1.24416168]
[1752819547602,4.2e-07,120450.0,120440.0,1.15840206]
[1752819548869,4.2e-07,120450.0,120440.0,1.13348006]
[1752819549079,4.2e-07,120450.0,120440.0,1.00144006]
[1752819549299,4.2e-07,120450.0,120440.0,1.13340006]
[1752819549935,4.2e-07,120450.0,120440.0,1.00144006]
[1752819550139,4.2e-07,120450.0,120440.0,1.13340006]
[1752819550490,4.2e-07,120450.0,120440.0,1.21915968]
[1752819552208,4.2e-07,120450.0,120440.0,1.08719968]
[1752819552440,4.2e-07,120450.0,120440.0,1.21915968]
[1752819552995,4.042e-05,120450.0,120440.0,1.21915968]
[1752819553670,4.042e-05,120450.0,120440.0,1.13340006]
[1752819555490,4.042e-05,120450.0,120440.0,1.15832206]
[1752819556008,4.042e-05,120450.0,120440.0,1.15828206]
[1752819556219,4.042e-05,120450.0,120440.0,0.78602044]
[1752819556620,4.042e-05,120450.0,120440.0,1.15828206]
[1752819558988,4.042e-05,120450.0,120440.0,0.78602044]
[1752819559233,4.042e-05,120450.0,120440.0,1.15828206]
[1752819562078,4.042e-05,120450.0,120440.0,1.02636206]
[1752819562302,0.02896199,120450.0,120440.0,0.30621543]
[1752819562526,0.07026761,120450.0,120440.0,0.42971303]
[1752819562740,0.07026754,120450.0,120440.0,0.43801543]
[1752819562955,0.06196555,120450.0,120440.0,0.41309343]
[1752819563172,0.07026761,120450.0,120440.0,0.41309343]
[1752819563661,0.07026761,120450.0,120440.0,0.40909343]
[1752819563897,0.07856974,120450.0,120440.0,0.40909343]
[1752819564105,0.24461437,120450.0,120440.0,0.40909357]
[1752819564313,0.24461437,120450.0,120440.0,0.42569844]
[1752819564535,0.07026817,120450.0,120440.0,0.42569844]
[1752819564986,0.06196604,120450.0,120440.0,0.42269844]
[1752819565203,0.06196597,120450.0,120440.0,0.42269844]
[1752819565585,0.07026803,120450.0,120440.0,0.42469844]
[1752819566107,0.07857016,120450.0,120440.0,0.42269844]
[1752819567135,0.07026803,120450.0,120440.0,0.42269844]
[1752819567547,0.23631252,120450.0,120440.0,0.26599103]
[1752819567769,0.23631252,120450.0,120440.0,0.3977513]
[1752819567983,0.23631252,120450.0,120440.0,0.39775137]
[1752819568144,0.28319093,120450.0,120440.0,0.25768862]
[1752819568344,0.27488908,120450.0,120440.0,0.25768862]
[1752819568564,0.21970868,120450.0,120440.0,5.508e-05]
[1752819570469,0.35142868,120450.0,120440.0,5.508e-05]
[1752819570914,0.21970868,120450.0,120440.0,0.16611286]
[1752819571121,0.35142868,120450.0,120440.0,5.508e-05]
[1752819571325,0.39000301,120450.0,120440.0,5.508e-05]
[1752819571461,0.26028301,120450.0,120440.0,5.508e-05]
[1752819571650,0.60028301,120450.0,120440.0,5.508e-05]
[1752819572071,0.73200301,120450.0,120440.0,5.508e-05]
[1752819573076,0.73500301,120450.0,120440.0,5.508e-05]
[1752819574133,0.60328301,120450.0,120440.0,5.508e-05]
[1752819574357,0.73496301,120450.0,120440.0,5.508e-05]
[1752819574573,0.69638868,120450.0,120440.0,5.508e-05]
[1752819588349,0.71092953,120450.0,120440.0,5.508e-05]
[1752819588566,5.8237902,120450.0,120440.0,5.508e-05]
[1752819589020,5.79631981,120450.0,120440.0,5.508e-05]
[1752819589241,0.88007943,120450.0,120440.0,5.508e-05]
[1752819589442,0.74851943,120450.0,120440.0,5.508e-05]
[1752819589653,0.88007943,120450.0,120440.0,5.508e-05]
[1752819589857,0.87707943,120450.0,120440.0,5.508e-05]
[1752819590300,0.88107943,120450.0,120440.0,5.508e-05]
[1752819590519,0.87707943,120450.0,120440.0,5.508e-05]
[1752819590705,0.66175981,120450.0,120440.0,5.508e-05]
[1752819590858,0.79931981,120450.0,120440.0,5.508e-05]
[1752819591247,0.79731981,120450.0,120440.0,5.508e-05]
[1752819591715,0.80031981,120450.0,120440.0,5.508e-05]
[1752819592353,0.88607943,120450.0,120440.0,5.508e-05]
[1752819594214,0.6544683,120450.0,120440.0,5.508e-05]
[1752819594428,0.7859883,120450.0,120440.0,5.508e-05]
[1752819596028,0.56870868,120450.0,120440.0,5.508e-05]
[1752819596240,0.53680868,120450.0,120440.0,5.508e-05]
[1752819596429,0.53680868,120450.0,120440.0,0.00205508]
[1752819596633,0.66828868,120450.0,120440.0,0.00205508]
[1752819597044,0.66228868,120450.0,120440.0,0.00205508]
[1752819597248,0.53080868,120450.0,120440.0,0.00205508]
[1752819597451,0.66228868,120450.0,120440.0,0.00205508]
[1752819597666,0.65928868,120450.0,120440.0,0.00205508]
[1752819597946,0.66128868,120450.0,120440.0,0.00205508]
[1752819598372,0.66428868,120450.0,120440.0,0.00205508]